bitfinex-derivatives/quotes_SOLF0:USTF0_20241224
["timestamp","ask_amount","ask_price","bid_price","bid_amount"]
[1735006070440,2.6576,188.37,188.34,2.658]
[1735006072739,2.6576,188.37,188.33,2.6582]
[1735006077541,2.6578,188.36,188.33,2.6582]
[1735006077935,1.06179655,188.36,188.32,7.80975698]
[1735006078241,2.658,188.35,188.31,10.46805698]
[1735006078839,7.80975698,188.35,188.29,4.3098]
[1735006079039,7.80975698,188.35,188.29,2.6587]
[1735006079640,2.6583,188.33,188.29,2.6587]
[1735006079843,7.80975698,188.35,188.29,2.6587]
[1735006080640,2.6584,188.32,188.29,2.6587]
[1735006081440,7.80975698,188.31,188.27,2.6589]
[1735006081646,7.80975698,188.29,188.22,1.5286]
[1735006082642,7.80975698,188.27,188.2,1.6285]
[1735006082849,7.80975698,188.25,188.19,66.9498055]
[1735006083045,7.80975698,188.21,188.19,59.14004852]
[1735006083250,7.80975698,188.21,188.14,79.98691453]
[1735006084245,7.80975698,188.21,188.14,7.80975698]
[1735006084441,2.6602,188.19,188.14,10.47055698]
[1735006087047,2.6605,188.17,188.11,2.6612]
[1735006087245,2.6605,188.17,188.11,10.47095698]
[1735006087451,7.80975698,188.17,188.08,3.44]
[1735006087648,7.80975698,188.17,188.09,7.80975698]
[1735006088556,2.6608,188.15,188.09,10.47125698]
[1735006088947,2.6608,188.15,188.11,7.80975698]
[1735006092854,7.80975698,188.17,188.09,2.6616]
[1735006093064,7.80975698,188.15,188.06,11.13685698]
[1735006093362,7.80975698,188.13,188.06,11.13685698]
[1735006093662,7.80975698,188.15,188.06,11.13685698]
[1735006093857,7.80975698,188.15,188.08,7.80975698]
[1735006094063,2.6611,188.13,188.08,7.80975698]
[1735006094264,7.80975698,188.15,188.08,7.80975698]
[1735006094563,2.6608,188.15,188.1,10.47115698]
[1735006096363,2.6606,188.16,188.11,2.6613]
[1735006096663,7.80975698,188.17,188.1,7.80975698]
[1735006097055,7.80975698,188.17,188.08,7.80975698]
[1735006097260,7.80975698,188.15,188.07,7.80975698]
[1735006097664,2.6613,188.12,188.07,10.47165698]
[1735006101759,2.661,188.14,188.09,2.6615]
[1735006101966,2.661,188.14,188.09,7.80975698]
[1735006102560,3.44,188.19,188.09,7.80975698]
[1735006102762,10.47045698,188.16,188.11,2.6613]
[1735006103075,1.06298166,188.15,188.11,2.6613]
[1735006103666,1.06298166,188.15,188.09,7.80975698]
[1735006104065,7.80975698,188.14,188.07,7.80975698]
[1735006104363,7.80975698,188.12,188.06,1.6668]
[1735006105165,2.6616,188.09,188.06,1.6668]
[1735006105365,7.80975698,188.12,188.06,1.6668]
[1735006105566,2.6617,188.09,188.06,1.6668]
[1735006105766,7.80975698,188.12,188.06,1.6668]
[1735006107271,2.6615,188.1,188.06,4.3287]
[1735006109472,1.06298166,188.15,188.07,7.80975698]
[1735006109674,1.06298166,188.15,188.09,7.80975698]
[1735006110077,1.06298166,188.15,188.13,2.661]
[1735006110371,1.06298166,188.15,188.13,10.47075698]
[1735006110571,1.06298166,188.15,188.13,7.80975698]
[1735006111572,1.06298166,188.15,188.13,2.6609]
[1735006115177,1.06298166,188.15,188.08,3.44]
[1735006115381,3.72378166,188.15,188.1,2.6614]
[1735006115582,3.72378166,188.15,188.09,7.80975698]
[1735006116176,1.06298166,188.15,188.09,7.80975698]
[1735006116378,1.06298166,188.15,188.12,2.6611]
[1735006119283,1.06298166,188.15,188.09,7.80975698]
[1735006119483,3.72378166,188.15,188.11,2.6613]
[1735006120087,2.661,188.13,188.09,2.6614]
[1735006120485,8.87273864,188.15,188.07,9.41855698]
[1735006121489,2.6613,188.11,188.07,12.08035698]
[1735006124289,2.6611,188.13,188.09,10.47115698]
[1735006124490,2.6611,188.13,188.09,7.80975698]
[1735006125493,2.6611,188.13,188.1,2.6614]
[1735006127095,7.80975698,188.14,188.08,2.6617]
[1735006127291,7.80975698,188.14,188.07,9.41855698]
[1735006127494,2.6614,188.11,188.07,1.6088]
[1735006132697,2.6614,188.11,188.07,4.2706]
[1735006132898,2.6612,188.12,188.07,9.41855698]
[1735006133094,1.06309466,188.13,188.07,9.41855698]
[1735006133492,3.72409466,188.13,188.1,2.6614]
[1735006133693,1.06309466,188.13,188.1,2.6614]
[1735006135502,3.72409466,188.13,188.1,2.6614]
[1735006141006,1.06309466,188.13,188.08,2.6616]
[1735006141308,1.06309466,188.13,188.07,9.41855698]
[1735006143504,1.06309466,188.13,188.07,12.08035698]
[1735006144408,2.6614,188.11,188.07,12.08035698]
[1735006146205,1.06309466,188.13,188.07,9.41855698]
[1735006146410,1.06309466,188.13,188.09,7.80975698]
[1735006147408,1.06309466,188.13,188.1,2.6613]
[1735006150114,2.6614,188.11,188.07,4.2707]
[1735006150307,2.6614,188.11,188.07,12.08045698]
[1735006150610,1.06309466,188.13,188.07,9.41855698]
[1735006151506,2.6613,188.11,188.07,12.08035698]
[1735006156517,2.6613,188.11,188.07,4.2706]
[1735006157617,2.6615,188.1,188.06,4.3288]
[1735006158012,1.06309466,188.13,188.06,1.6668]
[1735006158212,2.6617,188.09,188.06,1.6668]
[1735006162719,2.6615,188.1,188.06,4.3287]
[1735006162922,1.06309466,188.13,188.07,7.80975698]
[1735006163118,1.06309466,188.13,188.09,7.80975698]
[1735006163720,1.06309466,188.13,188.1,2.6614]
[1735006168214,1.06309466,188.13,188.09,11.22975698]
[1735006168524,1.06309466,188.13,188.12,2.6612]
[1735006172715,1.06309466,188.13,188.11,2.6613]
[1735006172921,1.06309466,188.13,188.09,11.22975698]
[1735006174524,1.06309466,188.13,188.1,2.6614]
[1735006175320,1.06309466,188.13,188.12,2.6612]
[1735006175828,7.80975698,188.19,188.11,7.80975698]
[1735006177025,2.6605,188.17,188.13,10.47065698]
[1735006177229,1.73144529,188.2,188.13,7.80975698]
[1735006177524,9.54120227,188.2,188.13,7.80975698]
[1735006178426,2.6603,188.19,188.15,2.6607]
[1735006185633,1.73144529,188.2,188.17,2.6604]
[1735006185822,10.46975698,188.21,188.17,2.6604]
[1735006186430,2.66,188.21,188.15,7.80975698]
[1735006186727,2.6597,188.22,188.17,7.80975698]
[1735006187428,2.6597,188.22,188.19,2.6601]
[1735006187632,2.6599,188.21,188.16,7.80975698]
[1735006187827,7.80975698,188.23,188.16,7.80975698]
[1735006188129,7.80975698,188.23,188.19,2.66]
[1735006188431,10.46945698,188.23,188.19,2.66]
[1735006189048,10.46945698,188.23,188.2,2.66]
[1735006191031,10.46945698,188.23,188.19,2.6601]
[1735006191428,2.6597,188.22,188.19,2.6601]
[1735006191639,7.80975698,188.21,188.15,1.56]
[1735006192038,2.6607,188.16,188.14,3.42]
[1735006192240,7.80975698,188.19,188.14,3.42]
[1735006192937,7.80975698,188.21,188.14,11.22975698]
[1735006193639,7.80975698,188.21,188.16,7.80975698]
[1735006193840,2.6601,188.2,188.16,10.47025698]
[1735006195051,2.6601,188.2,188.17,2.6604]
[1735006195241,2.6601,188.2,188.16,7.80975698]
[1735006195539,2.6601,188.2,188.16,2.6605]
[1735006196736,7.80975698,188.21,188.14,7.80975698]
[1735006197339,2.6606,188.16,188.13,3.42]
[1735006197538,7.80975698,188.21,188.13,3.42]
[1735006197941,2.6604,188.18,188.14,2.6608]
[1735006201335,7.80975698,188.21,188.12,7.80975698]
[1735006201537,7.80975698,188.21,188.12,10.47075698]
[1735006202246,2.6607,188.16,188.12,10.47075698]
[1735006203451,7.80975698,188.17,188.1,5.7189]
[1735006204546,2.661,188.13,188.1,5.7189]
[1735006205243,2.6612,188.12,187.99,77.53506927]
[1735006205444,7.80975698,188.15,188.0,8.0264]
[1735006205644,7.80975698,188.13,188.06,7.80975698]
[1735006206446,2.6615,188.1,188.06,7.80975698]
[1735006207042,8.04042398,188.19,188.08,7.80975698]
[1735006207239,7.80975698,188.17,188.1,7.80975698]
[1735006207849,2.6611,188.13,188.1,7.80975698]
[1735006209447,2.6611,188.13,188.09,2.6615]
[1735006209645,7.80975698,188.15,188.08,7.80975698]
[1735006209950,7.80975698,188.13,188.06,11.22975698]
[1735006210143,7.80975698,188.13,188.06,7.80975698]
[1735006211648,2.6615,188.1,188.06,10.47175698]
[1735006214745,22.47342349,188.2,188.08,7.80975698]
[1735006214951,7.80975698,188.16,188.08,7.80975698]
[1735006215950,4.48275572,188.19,188.08,7.80975698]
[1735006215951,1.06275572,188.19,188.08,7.80975698]
[1735006216151,7.80975698,188.16,188.08,7.80975698]
[1735006216453,2.661,188.13,188.09,2.6615]
[1735006218351,7.80975698,188.16,188.08,7.80975698]
[1735006218552,7.80975698,188.14,188.08,7.80975698]
[1735006219152,2.6617,188.09,188.06,10.47175698]
[1735006220053,2.6617,188.09,188.06,7.80975698]
[1735006220654,2.6617,188.08,188.06,7.80975698]
[1735006221451,2.6617,188.08,188.05,2.6621]
[1735006221652,2.6617,188.08,188.06,7.80975698]
[1735006222353,2.6616,188.09,188.06,7.80975698]
[1735006227154,7.80975698,188.12,188.06,7.80975698]
[1735006227959,2.6618,188.08,188.04,13.89205698]
[1735006228258,7.80975698,188.1,188.04,7.80975698]
[1735006228446,2.662,188.06,188.04,7.80975698]
[1735006231759,2.662,188.06,188.03,2.6624]
[1735006233656,7.80975698,188.1,188.0,67.24617986]
[1735006233857,2.6622,188.05,188.02,7.80975698]
[1735006234763,2.6622,188.05,188.01,2.6627]
[1735006234964,2.6622,188.05,188.02,7.80975698]
[1735006235566,2.6622,188.05,188.01,2.6627]
[1735006235865,2.6622,188.05,188.02,7.80975698]
[1735006236268,2.662,188.06,188.02,10.47225698]
[1735006239271,2.662,188.07,188.03,2.6623]
[1735006240068,2.662,188.07,188.0,63.82617986]
[1735006240265,7.80975698,188.06,188.0,62.25387986]
[1735006240472,7.80975698,188.06,188.0,59.21977986]
[1735006240673,7.80975698,188.04,188.0,59.21977986]
[1735006241275,7.80975698,188.04,187.97,10.47295698]
[1735006242473,2.6627,188.01,187.97,10.47295698]
[1735006242669,7.80975698,188.04,187.95,3.42]
[1735006242870,3.42,188.07,187.95,7.80975698]
[1735006242871,7.80975698,188.02,187.95,7.80975698]
[1735006243068,2.6631,187.99,187.95,7.80975698]
[1735006243272,7.80975698,188.02,187.94,7.4483]
[1735006243678,2.663,187.99,187.94,5.8598]
[1735006244382,2.663,187.99,187.94,4.2189]
[1735006244978,2.663,187.99,187.94,2.6636]
[1735006245181,7.80975698,188.0,187.94,2.6636]
[1735006245377,2.6632,187.98,187.94,2.6636]
[1735006248984,10.47295698,187.98,187.94,2.6636]
[1735006249184,7.80975698,187.98,187.91,7.80975698]
[1735006249384,2.6633,187.97,187.92,2.6638]
[1735006249785,7.80975698,187.98,187.92,2.6638]
[1735006249986,2.6635,187.96,187.92,2.6638]
[1735006250784,7.80975698,187.98,187.89,1.6624]
[1735006250985,2.6638,187.94,187.9,2.6641]
[1735006251183,7.80975698,187.94,187.89,1.6624]
[1735006251479,7.80975698,187.94,187.86,7.80975698]
[1735006252583,2.6641,187.91,187.87,4.2222]
[1735006253188,2.6648,187.86,187.77,2.666]
[1735006253483,7.80975698,187.88,187.81,7.80975698]
[1735006254485,10.47435698,187.88,187.82,2.6653]
[1735006256490,2.6647,187.87,187.82,2.6653]
[1735006257889,2.665,187.85,187.81,7.80975698]
[1735006260190,2.665,187.85,187.8,2.6656]
[1735006260490,2.6648,187.87,187.82,2.6654]
[1735006261695,2.6648,187.87,187.76,8.2028]
[1735006261696,7.80975698,187.86,187.8,2.6657]
[1735006261988,7.80975698,187.86,187.79,7.80975698]
[1735006262185,4.6583,188.0,187.84,2.6651]
[1735006262491,7.80975698,187.95,187.87,7.80975698]
[1735006262683,2.664,187.93,187.88,2.6645]
[1735006263186,7.80975698,187.95,187.88,2.6645]
[1735006263597,2.6642,187.91,187.87,7.80975698]
[1735006263788,7.80975698,187.93,187.85,11.22975698]
[1735006263990,2.6647,187.87,187.85,3.42]
[1735006264190,2.6647,187.87,187.83,12.53265698]
[1735006264385,7.80975698,187.89,187.83,4.7229]
[1735006264592,2.6651,187.85,187.83,3.1621]
[1735006264794,7.80975698,187.87,187.83,1.6187]
[1735006264987,7.80975698,187.87,187.81,7.80975698]
[1735006265191,7.80975698,187.85,187.79,7.80975698]
[1735006266095,2.6653,187.83,187.79,7.80975698]
[1735006268297,2.6652,187.84,187.79,7.80975698]
[1735006268490,7.80975698,187.85,187.79,7.80975698]
[1735006269199,2.6654,187.83,187.79,7.80975698]
[1735006269396,7.80975698,187.85,187.78,59.29134717]
[1735006269600,7.80975698,187.83,187.75,9.32925698]
[1735006269896,7.80975698,187.79,187.71,2.6669]
[1735006270102,7.80975698,187.79,187.71,10.47665698]
[1735006270600,2.6666,187.74,187.71,7.80975698]
[1735006270796,7.80975698,187.79,187.64,4.8077]
[1735006271003,7.80975698,187.75,187.69,7.80975698]
[1735006271200,7.80975698,187.75,187.65,3.42]
[1735006271201,7.80975698,187.73,187.67,7.80975698]
[1735006271401,7.80975698,187.73,187.64,4.8077]
[1735006271597,7.80975698,187.71,187.64,12.61745698]
[1735006272306,2.6677,187.67,187.64,12.61745698]
[1735006272503,7.80975698,187.71,187.64,12.61745698]
[1735006272699,7.80975698,187.69,187.64,4.8077]
[1735006272903,2.6677,187.66,187.64,3.2556]
[1735006273312,7.80975698,187.69,187.64,1.5951]
[1735006273506,7.80975698,187.69,187.62,7.80975698]
[1735006274209,4.5734,187.75,187.61,2.6683]
[1735006274412,12.2892771,187.71,187.61,2.6683]
[1735006275025,2.6674,187.68,187.61,2.6683]
[1735006275309,12.2892771,187.71,187.61,2.6683]
[1735006275705,2.6678,187.66,187.59,3.42]
[1735006275916,3.42,187.7,187.37,195.3436]
[1735006276110,2.6689,187.58,187.43,2.33535978]
[1735006276311,15.7092771,187.63,187.5,2.6699]
[1735006276511,15.7092771,187.63,187.48,12.2892771]
[1735006277012,12.2892771,187.6,187.49,2.67]
[1735006277311,12.2892771,187.6,187.48,3.42]
[1735006277513,12.2892771,187.57,187.43,5.00625978]
[1735006277708,12.2892771,187.54,187.43,2.33535978]
[1735006277909,2.6707,187.45,187.43,2.33535978]
[1735006278211,12.2892771,187.45,187.34,60.77664852]
[1735006278407,2.6715,187.4,187.34,60.77664852]
[1735006279007,12.2892771,187.45,187.34,60.77664852]
[1735006279208,12.2892771,187.45,187.32,3.48]
[1735006279410,3.48,187.47,187.34,12.2892771]
[1735006279714,3.0579,187.53,187.37,12.2892771]
[1735006279905,1.6215,187.53,187.4,12.2892771]
[1735006280106,15.7692771,187.55,187.43,12.2892771]
[1735006280609,15.7692771,187.55,187.41,3.1253]
[1735006280804,12.2892771,187.52,187.41,3.1253]
[1735006281207,2.67,187.5,187.41,5.7965]
[1735006281413,12.2892771,187.52,187.41,5.7965]
[1735006282213,12.2892771,187.52,187.41,3.1253]
[1735006282415,12.2892771,187.49,187.41,1.5957]
[1735006282610,15.7692771,187.49,187.41,1.5957]
[1735006282914,15.7692771,187.49,187.38,1.5577]
[1735006283312,2.6711,187.42,187.38,1.5577]
[1735006283519,12.2892771,187.46,187.37,1.5169]
[1735006283712,12.2892771,187.46,187.33,12.2892771]
[1735006283913,12.2892771,187.46,187.34,1.5169]
[1735006284114,2.671,187.43,187.35,2.6721]
[1735006285009,2.6708,187.45,187.36,12.2892771]
[1735006285820,15.7692771,187.49,187.36,12.2892771]
[1735006285821,2.6708,187.44,187.37,2.6717]
[1735006286524,2.6706,187.46,187.39,2.6714]
[1735006286816,2.6706,187.46,187.4,1.6226]
[1735006287018,12.2892771,187.5,187.4,1.6226]
[1735006287217,2.6707,187.45,187.4,1.6226]
[1735006287811,2.6708,187.44,187.4,1.6226]
[1735006289016,2.6706,187.46,187.4,1.6226]
[1735006290518,12.2892771,187.5,187.4,1.6226]
[1735006290918,12.2892771,187.53,187.4,1.6226]
[1735006291319,2.6704,187.47,187.4,4.2938]
[1735006291617,2.6704,187.47,187.4,1.6226]
[1735006291818,12.2892771,187.5,187.4,1.6226]
[1735006292022,2.6707,187.45,187.4,1.6226]
[1735006292725,12.2892771,187.5,187.4,1.6226]
[1735006293120,2.6708,187.45,187.4,1.6226]
[1735006293624,12.2892771,187.5,187.4,1.6226]
[1735006293820,2.6708,187.44,187.4,1.6226]
[1735006294323,2.6706,187.46,187.4,1.6226]
[1735006295119,12.2892771,187.47,187.39,1.5928]
[1735006295322,12.2892771,187.47,187.34,13.8061771]
[1735006295523,2.6716,187.39,187.34,1.5169]
[1735006295924,12.2892771,187.44,187.34,1.5169]
[1735006296121,2.6709,187.44,187.35,1.5168]
[1735006296321,12.2892771,187.47,187.35,3.1794]
[1735006297525,15.7692771,187.5,187.35,3.1794]
[1735006297726,2.6706,187.46,187.35,3.1794]
[1735006297920,15.7692771,187.5,187.35,3.1794]
[1735006298121,1.06672355,187.49,187.38,2.6716]
[1735006298328,1.06672355,187.49,187.37,3.48]
[1735006298627,12.2892771,187.47,187.37,3.48]
[1735006298825,2.6714,187.4,187.37,3.48]
[1735006299130,12.2892771,187.47,187.35,3.1794]
[1735006299326,12.2892771,187.44,187.35,3.1794]
[1735006299533,15.7692771,187.44,187.34,1.5169]
[1735006300129,2.6717,187.38,187.34,1.5169]
[1735006300432,15.7692771,187.44,187.34,1.5169]
[1735006300633,1.6146,187.46,187.34,13.8061771]
[1735006301027,2.6714,187.4,187.35,2.672]
[1735006301332,1.6146,187.46,187.34,13.8061771]
[1735006301527,1.6146,187.46,187.34,1.5169]
[1735006301831,2.672,187.36,187.32,2.6725]
[1735006303634,2.672,187.36,187.31,2.6726]
[1735006303826,2.6718,187.38,187.31,2.6726]
[1735006304025,12.2892771,187.4,187.31,2.6726]
[1735006304629,3.48,187.42,187.31,2.6726]
[1735006304830,2.6721,187.36,187.31,2.6726]
[1735006305124,3.48,187.42,187.31,2.6726]
[1735006305320,12.2892771,187.38,187.27,1.6617]
[1735006305728,3.48,187.4,187.3,2.6727]
[1735006305924,12.2892771,187.41,187.28,3.48]
[1735006306128,12.2892771,187.41,187.3,12.2892771]
[1735006306326,3.48,187.42,187.3,12.2892771]
[1735006306548,3.48,187.42,187.32,2.6725]
[1735006307031,2.672,187.36,187.32,2.6725]
[1735006307636,2.6719,187.37,187.3,12.2892771]
[1735006309433,2.6719,187.37,187.32,2.6725]
[1735006309633,2.6713,187.41,187.32,2.6725]
[1735006309831,15.9292771,187.44,187.32,2.6725]
[1735006310138,2.6716,187.39,187.35,2.6721]
[1735006310437,2.6716,187.39,187.3,12.2892771]
[1735006311341,2.6718,187.37,187.3,12.2892771]
[1735006311842,2.6718,187.37,187.33,2.6724]
[1735006312241,2.6717,187.38,187.33,2.6724]
[1735006312941,1.06706503,187.43,187.3,12.2892771]
[1735006313245,2.6716,187.39,187.34,2.6721]
[1735006313436,1.06706503,187.43,187.34,2.6721]
[1735006314334,1.06706503,187.43,187.3,12.2892771]
[1735006314542,12.2892771,187.41,187.28,3.48]
[1735006315246,12.2892771,187.41,187.31,2.6726]
[1735006316441,2.6721,187.35,187.31,2.6726]
[1735006316643,2.6721,187.35,187.32,2.6725]
[1735006318441,2.6723,187.34,187.3,2.6727]
[1735006318647,12.2892771,187.38,187.25,3.64]
[1735006319042,2.6722,187.35,187.28,2.673]
[1735006319241,12.2892771,187.38,187.25,3.64]
[1735006320337,12.2892771,187.38,187.29,2.6729]
[1735006320738,12.2892771,187.38,187.24,1.6347]
[1735006320951,13.8129771,187.38,187.24,5.2747]
[1735006321247,13.8129771,187.38,187.26,12.2892771]
[1735006321844,12.2892771,187.41,187.29,12.2892771]
[1735006322150,12.2892771,187.38,187.24,5.2747]
[1735006322744,1.06740673,187.37,187.24,5.2747]
[1735006323151,2.6724,187.34,187.28,2.6731]
[1735006323353,1.06740673,187.37,187.26,3.64]
[1735006323652,1.06740673,187.37,187.26,15.9292771]
[1735006323949,2.6725,187.33,187.28,2.6729]
[1735006326944,2.6725,187.33,187.3,2.6728]
[1735006328356,1.06740673,187.37,187.26,15.9292771]
[1735006328357,1.06740673,187.37,187.26,12.2892771]
[1735006329058,2.6726,187.32,187.27,2.6731]
[1735006329261,1.06740673,187.37,187.27,2.6731]
[1735006329757,2.6729,187.3,187.26,2.6734]
[1735006330257,15.9292771,187.35,187.23,15.3831771]
[1735006330959,2.30170673,187.37,187.26,12.2892771]
[1735006331160,1.06740673,187.37,187.27,3.64]
[1735006332063,2.6722,187.34,187.29,2.6728]
[1735006334164,2.6724,187.33,187.29,2.6728]
[1735006334561,2.6722,187.35,187.3,2.6727]
[1735006335462,2.6722,187.34,187.3,2.6727]
[1735006335763,1.06740673,187.37,187.3,2.6727]
[1735006335961,1.06740673,187.37,187.27,3.64]
[1735006336563,2.6728,187.31,187.27,6.3132]
[1735006337159,1.06740673,187.37,187.23,6.7339]
[1735006337360,12.2892771,187.34,187.23,3.0939]
[1735006337569,12.2892771,187.34,187.23,6.7539]
[1735006337867,12.2892771,187.34,187.23,5.7677]
[1735006338161,1.06740673,187.37,187.21,14.70792075]
[1735006338377,1.06740673,187.37,187.21,13.06902075]
[1735006338378,12.2892771,187.28,187.21,13.06902075]
[1735006338868,3.66,187.29,187.17,84.49834637]
[1735006339065,12.2892771,187.27,187.17,72.20906927]
[1735006339368,12.2892771,187.31,187.17,84.49834637]
[1735006339667,2.6737,187.24,187.19,2.6744]
[1735006339867,12.2892771,187.31,187.17,12.2892771]
[1735006340061,12.2892771,187.31,187.19,2.6744]
[1735006340261,12.2892771,187.28,187.13,8.3969]
[1735006340464,12.2892771,187.28,187.15,12.2892771]
[1735006340660,12.2892771,187.31,187.18,12.2892771]
[1735006340864,2.6731,187.28,187.19,3.9]
[1735006341063,3.9,187.32,187.21,12.2892771]
[1735006341268,1.5426,187.33,187.24,2.6736]
[1735006341467,2.673,187.29,187.24,2.6736]
[1735006342675,2.6729,187.3,187.25,2.6735]
[1735006343776,12.2892771,187.34,187.25,2.6735]
[1735006344975,2.6727,187.31,187.26,2.6733]
[1735006345574,2.6724,187.33,187.28,2.673]
[1735006346585,1.06740673,187.37,187.25,3.9]
[1735006346784,2.6722,187.34,187.29,2.6729]
[1735006347881,1.06740673,187.37,187.29,2.6729]
[1735006348278,1.06740673,187.37,187.27,12.2892771]
[1735006348491,1.06740673,187.37,187.28,1.655]
[1735006348687,2.672,187.36,187.28,1.655]
[1735006349288,2.672,187.36,187.32,2.6725]
[1735006350389,2.672,187.36,187.31,6.5726]
[1735006350682,1.06740673,187.37,187.28,1.655]
[1735006350888,12.2892771,187.36,187.28,1.655]
[1735006351088,12.2892771,187.36,187.26,3.9]
[1735006351689,12.2892771,187.36,187.25,3.9]
[1735006352184,2.673,187.29,187.25,2.6735]
[1735006353886,2.6725,187.33,187.24,8.0871]
[1735006354187,12.2892771,187.36,187.24,8.0871]
[1735006354587,12.2892771,187.36,187.24,4.1871]
[1735006355191,2.6731,187.29,187.24,4.1871]
[1735006356891,2.6731,187.29,187.25,2.6735]
[1735006359392,2.6732,187.28,187.24,1.5135]
[1735006362095,2.6732,187.28,187.24,4.1871]
[1735006363091,12.2892771,187.36,187.25,12.2892771]
[1735006363310,1.06740673,187.37,187.25,12.2892771]
[1735006363495,1.06740673,187.37,187.26,3.9]
[1735006364495,2.6727,187.31,187.27,2.6731]
[1735006367102,2.673,187.29,187.25,14.9626771]
[1735006367306,1.06740673,187.37,187.25,14.9626771]
[1735006367307,12.2892771,187.36,187.25,2.6734]
[1735006368098,1.06752068,187.35,187.25,2.6734]
[1735006368494,2.6731,187.28,187.25,2.6734]
[1735006369299,1.06752068,187.35,187.25,2.6734]
[1735006369904,12.2892771,187.33,187.23,2.6737]
[1735006370105,1.06769165,187.32,187.22,3.2511]
[1735006370404,2.6735,187.26,187.22,5.925]
[1735006372104,1.06769165,187.32,187.22,3.2511]
[1735006372298,2.6732,187.28,187.23,2.6737]
[1735006372795,1.06769165,187.32,187.23,2.6737]
[1735006373496,2.6732,187.27,187.23,2.6737]
[1735006374004,1.06769165,187.32,187.23,2.6737]
[1735006374200,2.6734,187.26,187.23,2.6737]
[1735006375602,2.6734,187.26,187.22,2.6739]
[1735006377408,12.2892771,187.25,187.11,15.28474589]
[1735006377703,12.2892771,187.28,187.15,12.2892771]
[1735006377898,16.0492771,187.28,187.15,12.2892771]
[1735006378505,2.6741,187.21,187.16,2.6748]
[1735006379100,2.6741,187.21,187.14,3.76]
[1735006379101,13.9158771,187.31,187.18,12.2892771]
[1735006379299,17.6758771,187.31,187.19,1.5411]
[1735006379507,17.6758771,187.31,187.19,3.1918]
[1735006379906,1.06780565,187.3,187.19,3.1918]
[1735006380505,2.6737,187.25,187.2,2.6742]
[1735006381403,1.06780565,187.3,187.19,3.1918]
[1735006381608,2.6734,187.26,187.21,2.6741]
[1735006384213,1.06780565,187.3,187.21,12.2892771]
[1735006385410,2.673,187.29,187.24,2.6737]
[1735006386415,2.6731,187.28,187.22,2.6738]
[1735006386920,2.6731,187.28,187.21,12.2892771]
[1735006387614,2.673,187.29,187.21,12.2892771]
[1735006387916,2.673,187.29,187.24,2.6736]
[1735006388122,1.06780565,187.3,187.21,12.2892771]
[1735006388716,12.2892771,187.36,187.26,2.6733]
[1735006388717,2.6725,187.32,187.26,2.6733]
[1735006388916,2.6725,187.32,187.26,3.76]
[1735006390417,2.6725,187.32,187.27,2.6732]
[1735006391217,12.2892771,187.36,187.26,3.76]
[1735006392425,2.6724,187.33,187.28,2.6731]
[1735006394419,12.2892771,187.33,187.24,3.76]
[1735006395318,2.6731,187.29,187.24,6.4336]
[1735006395920,2.6731,187.28,187.24,6.4336]
[1735006396222,12.2892771,187.3,187.2,1.6638]
[1735006396625,2.6738,187.23,187.2,1.6638]
[1735006396918,12.2892771,187.27,187.19,3.1918]
[1735006397220,2.6742,187.2,187.16,2.6747]
[1735006398022,2.6741,187.21,187.16,2.6747]
[1735006400026,2.6741,187.21,187.14,8.3543]
[1735006400227,2.6741,187.21,187.17,2.6746]
[1735006401222,2.6741,187.21,187.16,2.6748]
[1735006401428,2.6747,187.17,187.14,1.5103]
[1735006402030,2.6748,187.16,187.12,2.6752]
[1735006404031,2.675,187.15,187.11,2.21572514]
[1735006404329,16.0092771,187.21,187.11,2.21572514]
[1735006405032,2.6751,187.15,187.11,2.21572514]
[1735006407227,2.6751,187.15,187.1,4.278]
[1735006407228,3.72,187.15,186.96,147.915661]
[1735006407433,16.0092771,187.15,187.01,12.2892771]
[1735006407734,16.0092771,187.15,187.03,0.1998]
[1735006408632,2.6754,187.12,187.07,2.676]
[1735006408827,12.2892771,187.18,187.05,3.72]
[1735006409232,2.6751,187.15,187.09,2.6758]
[1735006410332,2.6751,187.14,187.09,2.6758]
[1735006411831,2.6751,187.14,187.1,2.6757]